bitfinex/quotes_ETHUSD_20250929
["timestamp","ask_amount","ask_price","bid_price","bid_amount"]
[1759121894144,0.001,4128.0,4127.9,21.7195393]
[1759121899418,0.001,4128.0,4127.9,21.0438393]
[1759121901025,0.001,4128.0,4127.9,21.7195393]
[1759121910826,0.001,4128.0,4127.9,21.0438393]
[1759121912247,0.001,4128.0,4127.9,21.7195393]
[1759121912838,0.001,4128.0,4127.9,21.5987393]
[1759121913025,0.001,4128.0,4127.9,21.7195393]
[1759121914227,0.001,4128.0,4127.9,25.9495393]
[1759121914555,0.001,4128.0,4127.9,28.9495393]
[1759121918254,0.001,4128.0,4127.9,28.7224393]
[1759121918460,0.001,4128.0,4127.9,28.9495393]
[1759121921648,0.001,4128.0,4127.9,25.2558393]
[1759121921832,0.001,4128.0,4127.9,28.2728393]
[1759121922735,0.001,4128.0,4127.9,27.4808393]
[1759121922933,0.001,4128.0,4127.9,28.2728393]
[1759121923164,0.001,4128.0,4127.9,24.0428393]
[1759121925563,0.001,4128.0,4127.9,21.0428393]
[1759121930847,0.001,4128.0,4127.9,17.2338393]
[1759121931059,0.1205,4128.0,4127.9,20.2508393]
[1759121933376,0.001,4128.0,4127.9,20.2508393]
[1759121936977,0.001,4128.0,4127.9,17.2338393]
[1759121937161,0.1205,4128.0,4127.9,20.0603393]
[1759121937669,0.1205,4128.0,4127.9,20.1574782]
[1759121938075,0.001,4128.0,4127.9,20.1574782]
[1759121938461,0.001,4128.0,4127.9,20.0603393]
[1759121943657,0.001,4128.0,4127.9,20.5161393]
[1759121943984,0.001,4128.0,4127.9,20.7478393]
[1759121944860,0.001,4128.0,4127.9,21.5398393]
[1759121945256,0.001,4128.0,4127.9,21.63696923]
[1759121962301,0.001,4128.0,4127.9,20.94946923]
[1759121964377,0.001,4128.0,4127.9,21.63796923]
[1759121964578,0.001,4128.0,4127.9,20.94946923]
[1759121965204,0.001,4128.0,4127.9,17.14046923]
[1759121965386,0.001,4128.0,4127.9,20.0593393]
[1759121982022,0.001,4128.0,4127.9,17.0433393]
[1759121982191,0.001,4128.0,4127.9,20.0593393]
[1759121983194,0.001,4128.0,4127.9,17.0433393]
[1759121983391,0.001,4128.0,4127.9,20.0593393]
[1759121987010,0.001,4128.0,4127.9,14.6208]
[1759121987212,0.66939258,4128.0,4127.9,14.5]
[1759121987418,0.78889258,4128.0,4127.9,14.5]
[1759121987924,0.71889258,4128.0,4127.9,14.5]
[1759121988101,0.78889258,4128.0,4127.9,14.5]
[1759121992120,0.71889258,4128.0,4127.9,14.5]
[1759121995938,0.59939258,4128.0,4127.9,14.5]
[1759121998943,0.1205,4128.0,4127.9,16.9225393]
[1759121999143,0.001,4128.0,4127.9,17.7318393]
[1759122004135,0.001,4128.0,4127.9,17.82898079]
[1759122016374,0.001,4128.0,4127.9,18.62098079]
[1759122016584,0.001,4128.0,4127.9,22.85098079]
[1759122017797,0.001,4128.0,4127.9,25.85098079]
[1759122022801,0.001,4128.0,4127.9,28.17848079]
[1759122022998,0.001,4128.0,4127.9,25.87818079]
[1759122023200,0.001,4128.0,4127.9,17.14048079]
[1759122023400,0.1205,4128.0,4127.9,17.14048079]
[1759122023603,0.1205,4128.0,4127.9,20.15648079]
[1759122023762,0.1905,4128.0,4127.9,17.0433393]
[1759122023967,0.1905,4128.0,4127.9,20.0593393]
[1759122024169,0.1905,4128.0,4127.9,17.6368]
[1759122024395,0.1905,4128.0,4127.9,20.0593393]
[1759122024704,0.1905,4128.0,4127.9,14.5]
[1759122024868,0.94962365,4128.0,4127.9,14.5]
[1759122027577,0.94962365,4128.0,4127.5,0.002]
[1759122027782,4.7879258,4127.6,4127.5,0.002]
[1759122027982,4.9087258,4127.6,4127.5,0.002]
[1759122028180,0.3103,4127.6,4127.5,0.002]
[1759122028790,1.03908418,4127.6,4127.5,0.002]
[1759122029002,0.96908418,4127.6,4127.5,0.002]
[1759122029381,1.03908418,4127.6,4127.5,0.002]
[1759122029795,3.46179955,4127.6,4127.5,0.002]
[1759122029992,3.80797951,4127.6,4127.5,0.002]
[1759122031481,1.38526414,4127.6,4127.5,0.002]
[1759122031900,1.19576414,4127.6,4127.5,0.002]
[1759122032086,0.84958418,4127.6,4127.5,0.002]
[1759122035135,0.1195,4127.8,4127.5,0.002]
[1759122035325,0.7287116,4127.8,4127.5,0.002]
[1759122035527,0.1195,4127.6,4127.5,0.002]
[1759122038728,0.1195,4127.6,4127.5,14.502]
[1759122039916,0.1228,4127.7,4127.5,14.502]
[1759122040262,0.27348466,4127.6,4127.5,14.502]
[1759122040517,0.39298466,4127.6,4127.5,0.002]
[1759122040818,0.1228,4127.7,4127.5,0.002]
[1759122042219,0.2423,4127.7,4127.5,0.002]
[1759122044417,0.2423,4127.7,4127.5,14.502]
[1759122044593,0.1228,4127.7,4127.5,14.502]
[1759122046021,2.54205435,4127.9,4127.5,14.502]
[1759122046217,0.51563047,4127.8,4127.5,14.502]
[1759122047030,2.93825748,4127.8,4127.5,14.502]
[1759122047429,3.05775748,4127.8,4127.5,14.502]
[1759122048340,2.93825748,4127.8,4127.5,14.502]
[1759122048699,0.51563047,4127.8,4127.5,14.502]
[1759122048902,0.31286821,4127.7,4127.5,14.502]
[1759122050455,8.08647099,4127.6,4127.5,0.002]
[1759122050608,8.15647099,4127.6,4127.5,0.002]
[1759122050802,11.88533485,4127.6,4127.5,0.002]
[1759122051238,12.00530426,4127.6,4127.5,0.002]
[1759122051434,13.83264512,4127.6,4127.5,0.002]
[1759122053840,14.21269842,4127.6,4127.5,0.002]
[1759122056720,17.23669842,4127.6,4127.5,0.002]
[1759122059653,18.69369842,4127.6,4127.5,0.002]
[1759122060817,19.48569842,4127.6,4127.5,0.002]
[1759122061349,4.67183277,4127.4,4127.3,0.002]
[1759122061550,10.69683277,4127.4,4127.3,0.002]
[1759122061760,10.88633277,4127.4,4127.3,0.002]
[1759122064471,11.2664447,4127.4,4127.3,0.002]
[1759122065569,3.88000889,4127.1,4126.9,0.002]
[1759122065756,15.44926451,4127.1,4126.9,0.002]
[1759122065958,15.63876451,4127.1,4126.9,0.002]
[1759122066267,15.73597446,4127.1,4126.9,0.002]
[1759122068362,16.52797446,4127.1,4126.9,0.002]
[1759122068534,18.49504215,4127.1,4126.9,0.002]
[1759122070279,21.05004215,4127.1,4126.9,0.002]
[1759122070773,20.93054215,4127.1,4126.9,0.002]
[1759122070939,20.98004215,4127.1,4126.9,0.002]
[1759122071139,18.30554215,4127.1,4126.9,0.002]
[1759122072941,15.28054215,4127.1,4126.9,0.002]
[1759122073141,11.96928653,4127.1,4127.0,0.6916]
[1759122073777,11.97028653,4127.1,4127.0,0.6916]
[1759122074681,17.51454215,4127.1,4127.0,0.6916]
[1759122075183,17.51454215,4127.1,4127.0,0.002]
[1759122078978,17.63404215,4127.1,4127.0,0.002]
[1759122079192,18.42604215,4127.1,4127.0,0.002]
[1759122079572,18.49604215,4127.1,4127.0,0.002]
[1759122080201,21.05204215,4127.1,4127.0,0.002]
[1759122082365,21.43218718,4127.1,4127.0,0.002]
[1759122082570,7.0008676,4127.0,4126.9,1e-08]
[1759122082770,9.51902985,4127.0,4126.9,1e-08]
[1759122083008,9.63852985,4127.0,4126.9,1e-08]
[1759122083305,9.73574476,4127.0,4126.9,1e-08]
[1759122084017,10.52774476,4127.0,4126.9,1e-08]
[1759122086499,12.96424476,4127.0,4126.9,1e-08]
[1759122086818,22.76969876,4127.0,4126.9,1e-08]
[1759122088267,27.56564445,4127.0,4126.9,1e-08]
[1759122088473,27.56564445,4127.0,4126.8,0.002]
[1759122088474,10.22812631,4126.9,4126.8,0.002]
[1759122088670,15.02418944,4126.7,4126.6,0.002]
[1759122088900,18.05018944,4126.7,4126.6,0.002]
[1759122089218,18.16968944,4126.7,4126.6,0.002]
[1759122089406,20.68785169,4126.7,4126.6,0.002]
[1759122090587,20.56835169,4126.7,4126.6,0.002]
[1759122096414,20.94852884,4126.7,4126.6,0.002]
[1759122099378,20.94752884,4126.7,4126.6,0.002]
[1759122099899,17.92252884,4126.7,4126.6,0.002]
[1759122100084,20.94752884,4126.7,4126.6,0.002]
[1759122101124,14.57452884,4126.7,4126.6,0.6818]
[1759122101421,18.39152884,4126.7,4126.6,0.6818]
[1759122101634,18.39152884,4126.7,4126.6,0.002]
[1759122102426,18.39152884,4126.7,4126.6,0.2459]
[1759122102632,18.39152884,4126.7,4126.6,0.6818]
[1759122102799,18.39152884,4126.7,4126.6,0.002]
[1759122106520,18.39152884,4126.7,4126.6,0.6818]
[1759122106521,18.39252884,4126.7,4126.6,0.6818]
[1759122108697,18.34252884,4126.7,4126.6,0.6818]
[1759122110322,18.34252884,4126.7,4126.6,0.6805]
[1759122110518,18.34152884,4126.7,4126.6,0.6805]
[1759122114240,4.3053394,4126.7,4126.6,0.4366]
[1759122114407,6.85624375,4126.7,4126.6,0.6805]
[1759122114606,9.85624375,4126.7,4126.6,0.6805]
[1759122117231,6.83024375,4126.7,4126.6,0.6805]
[1759122117433,9.85724375,4126.7,4126.6,0.6805]
[1759122119243,6.83024375,4126.7,4126.6,0.6805]
[1759122119545,9.85624375,4126.7,4126.6,0.6805]
[1759122120043,4.407,4126.7,4126.6,0.6805]
[1759122120250,7.433,4126.7,4126.6,0.6805]
[1759122120460,9.85624375,4126.7,4126.6,0.6805]
[1759122122245,9.85724375,4126.7,4126.6,0.6805]
[1759122122471,6.026,4126.7,4126.6,0.6805]
[1759122122622,8.44924375,4126.7,4126.6,0.6805]
[1759122123865,5.42424375,4126.7,4126.6,0.6805]
[1759122124050,8.45024375,4126.7,4126.6,0.6805]
[1759122124641,6.026,4126.7,4126.6,0.6805]
[1759122124959,8.44924375,4126.7,4126.6,0.6805]
[1759122125329,6.026,4126.7,4126.6,0.6805]
[1759122125721,8.44924375,4126.7,4126.6,0.6805]
[1759122126144,6.026,4126.7,4126.6,0.6805]
[1759122126322,3.001,4126.7,4126.6,0.6805]
[1759122126525,6.026,4126.7,4126.6,0.6805]
[1759122132393,13.24518944,4126.7,4126.6,0.0007]
[1759122132691,13.84778944,4126.7,4126.6,0.0007]
[1759122133851,15.42528944,4126.7,4126.6,0.0007]
[1759122134048,15.49528944,4126.7,4126.6,0.0007]
[1759122134298,16.21728944,4126.7,4126.6,0.0007]
[1759122134503,16.28728944,4126.7,4126.6,0.0007]
[1759122135639,16.66744673,4126.7,4126.6,0.0007]
[1759122136739,16.59744673,4126.7,4126.6,0.0007]
[1759122138288,16.66744673,4126.7,4126.6,0.0007]
[1759122140953,16.59744673,4126.7,4126.6,0.0007]
[1759122141468,16.47794673,4126.7,4126.6,0.0007]
[1759122142270,16.47694673,4126.7,4126.6,0.0007]
[1759122148380,17.22958953,4126.7,4126.6,0.0007]
[1759122157693,17.34908953,4126.7,4126.6,0.0007]
[1759122158493,17.22958953,4126.7,4126.6,0.0007]
[1759122163768,17.22958953,4126.7,4126.5,1e-08]
[1759122163769,7.79410247,4126.6,4126.5,1e-08]
[1759122163969,9.900546,4126.6,4126.5,1e-08]
[1759122164404,9.781046,4126.6,4126.5,1e-08]
[1759122165474,9.87826611,4126.6,4126.5,1e-08]
[1759122165675,9.99776611,4126.6,4126.5,1e-08]
[1759122166974,10.37794925,4126.6,4126.5,1e-08]
[1759122167218,10.25844925,4126.6,4126.5,1e-08]
[1759122167521,10.37794925,4126.6,4126.5,1e-08]
[1759122168088,10.25844925,4126.6,4126.5,1e-08]
[1759122174417,9.87826611,4126.6,4126.5,0.70370001]
[1759122174725,12.89826611,4126.6,4126.5,0.70370001]
[1759122175227,13.27842726,4126.6,4126.5,0.70370001]
[1759122178907,13.27842726,4126.6,4126.5,1e-08]
[1759122179721,12.89826611,4126.6,4126.5,1e-08]
[1759122181435,13.01776611,4126.6,4126.5,1e-08]
[1759122182317,0.792,4126.4,4126.1,0.002]
[1759122182627,0.792,4126.4,4126.0,1e-08]
[1759122182628,7.67359613,4126.1,4126.0,1e-08]
[1759122182791,10.69359613,4126.1,4126.0,1e-08]
[1759122183633,10.93169613,4126.1,4126.0,1e-08]
[1759122184336,11.31192097,4126.1,4126.0,1e-08]
[1759122184511,13.49592566,4126.1,4126.0,1e-08]
[1759122185220,19.04551415,4126.1,4126.0,0.70370001]
[1759122185415,19.04551415,4126.1,4126.0,1e-08]
[1759122185613,19.52581292,4126.1,4126.0,1e-08]
[1759122186297,19.64531292,4126.1,4126.0,1e-08]
[1759122186741,19.64531292,4126.1,4125.7,0.002]
[1759122186742,3.21577235,4125.8,4125.7,0.002]
[1759122187041,10.69477235,4125.8,4125.7,0.002]
[1759122187245,10.81427235,4125.8,4125.7,0.002]
[1759122187423,11.27987235,4125.8,4125.7,0.002]
[1759122187738,2.42435996,4124.8,4124.6,0.4656]
[1759122187939,8.56958849,4124.7,4124.6,0.4656]
[1759122188231,13.99400723,4124.7,4124.6,0.4656]
[1759122188413,13.99400723,4124.7,4124.6,0.7037]
[1759122192117,13.99400723,4124.7,4124.6,0.4656]
[1759122192320,13.99400723,4124.7,4124.6,0.7031]
[1759122192515,13.99400723,4124.7,4123.8,14.5]
[1759122192516,3.0,4124.6,4123.5,2.54591586]
[1759122192722,5.54555796,4124.2,4123.8,0.6941]
[1759122192950,3.021,4124.1,4123.9,0.6941]
[1759122193150,6.021,4124.1,4124.0,0.6941]
[1759122193357,6.7151,4124.1,4124.0,0.6941]
[1759122196524,6.7151,4124.1,4124.0,15.1941]
[1759122197364,6.7151,4124.1,4123.7,0.1]
[1759122197365,2.42488906,4123.9,4123.7,0.1]
[1759122197536,3.021,4123.8,4123.7,0.1]
[1759122197720,5.44594786,4123.8,4123.7,0.1]
[1759122197926,5.44594786,4123.8,4123.7,0.7941]
[1759122198137,6.17545331,4123.8,4123.7,0.7941]
[1759122199240,3.15445331,4123.8,4123.7,0.7941]
[1759122199548,6.18545331,4123.8,4123.7,0.7941]
[1759122202271,6.18545331,4123.8,4123.7,0.1]
[1759122202576,7.64345331,4123.8,4123.7,0.7941]
[1759122203667,7.64345331,4123.8,4123.7,0.1]
[1759122205473,11.2871772,4123.8,4123.7,0.1]
[1759122208968,8.2561772,4123.8,4123.7,0.1]
[1759122209161,11.2861772,4123.8,4123.7,0.1]
[1759122209678,8.2561772,4123.8,4123.7,0.1]
[1759122209881,11.2861772,4123.8,4123.7,0.1]
[1759122210378,16.08746102,4123.8,4123.7,0.1]
[1759122213103,13.05746102,4123.8,4123.7,0.1]
[1759122213297,15.44373713,4123.8,4123.7,0.7941]
[1759122215900,15.44273713,4123.8,4123.7,0.7941]
[1759122217267,12.41373713,4123.8,4123.7,0.1]
[1759122217500,15.44273713,4123.8,4123.7,0.1]
[1759122219607,15.56223713,4123.8,4123.7,0.1]
[1759122219807,17.36794777,4123.8,4123.7,0.1]
[1759122220306,18.15994777,4123.8,4123.7,0.1]
[1759122220477,18.22994777,4123.8,4123.7,0.1]
[1759122222110,18.61037492,4123.8,4123.7,0.1]
[1759122223006,18.54037492,4123.8,4123.7,0.1]
[1759122223510,19.03109609,4123.8,4123.7,0.1]
[1759122223808,9.7985911,4123.8,4123.7,0.1]
[1759122224014,17.25244777,4123.8,4123.7,0.1]
[1759122224688,18.04444777,4123.8,4123.7,0.1]
[1759122225490,18.16394777,4123.8,4123.7,0.1]
[1759122226207,18.54437279,4123.8,4123.7,0.1]
[1759122226510,18.61437279,4123.8,4123.7,0.1]
[1759122226698,18.54437279,4123.8,4123.7,0.1]
[1759122227094,19.04058421,4123.8,4123.7,0.1]
[1759122228425,18.92108421,4123.8,4123.7,0.1]
[1759122228724,18.92108421,4123.8,4123.7,0.3357]
[1759122229106,18.92208421,4123.8,4123.7,0.1]
[1759122229303,14.59987279,4123.8,4123.7,0.1]
[1759122229510,17.63387279,4123.8,4123.7,0.8049]
[1759122230028,14.21944777,4123.8,4123.7,0.8049]
[1759122230198,12.41373713,4123.8,4123.7,0.8049]
[1759122230398,15.44873713,4123.8,4123.7,0.8049]
[1759122230910,15.44873713,4123.8,4123.7,0.1]
[1759122231502,15.44873713,4123.8,4123.7,0.3357]
[1759122231703,15.44873713,4123.8,4123.7,0.8049]
[1759122232030,17.28479827,4123.8,4123.7,0.8049]
[1759122232599,14.24979827,4123.8,4123.7,0.8049]
[1759122232797,15.44873713,4123.8,4123.7,0.8049]
[1759122234931,12.41373713,4123.8,4123.7,0.8049]
[1759122235432,15.44873713,4123.8,4123.7,0.8049]
[1759122239618,9.18845331,4123.8,4123.7,0.8049]
[1759122239820,8.45994786,4123.8,4123.7,0.8049]
[1759122240220,13.26123168,4123.8,4123.7,0.8049]
[1759122240421,13.73786108,4123.8,4123.7,0.1]
[1759122240610,13.85736108,4123.8,4123.7,0.1]
[1759122240818,14.58692153,4123.8,4123.7,0.1]
[1759122241007,14.46742153,4123.8,4123.7,0.1]
[1759122242037,16.71742153,4123.8,4123.7,0.1]
[1759122242406,12.89042153,4123.8,4123.7,0.1]
[1759122242606,6.15450831,4123.8,4123.7,0.8049]
[1759122242831,9.19050831,4123.8,4123.7,0.8049]
[1759122248332,9.19050831,4123.8,4123.7,0.1]
[1759122251521,10.64850831,4123.8,4123.7,0.1]
[1759122251758,11.63000831,4123.8,4123.7,0.1]
[1759122252056,13.51562246,4123.8,4123.7,0.1]
[1759122253049,7.79580666,4123.7,4123.6,0.002]
[1759122253221,7.86580666,4123.7,4123.6,0.002]
[1759122253422,7.98530666,4123.7,4123.6,0.002]
[1759122255252,8.36576095,4123.7,4123.6,0.002]
[1759122255445,10.70691656,4123.7,4123.6,0.002]
[1759122256165,10.63691656,4123.7,4123.6,0.002]
[1759122256460,10.70691656,4123.7,4123.6,0.002]
[1759122259571,10.32646227,4123.7,4123.6,0.002]
[1759122259984,13.29246227,4123.7,4123.6,0.002]
[1759122261758,13.36246227,4123.7,4123.6,0.002]
[1759122262579,13.74292706,4123.7,4123.6,0.002]
[1759122263848,13.74192706,4123.7,4123.6,0.002]
[1759122265779,7.67524191,4123.3,4123.2,0.002]
[1759122266097,21.07933374,4123.3,4123.2,0.002]
[1759122266589,21.79613374,4123.3,4123.2,0.002]
[1759122270277,17.75299956,4123.3,4123.2,0.002]
[1759122272778,17.75299956,4123.3,4123.2,0.2457]
[1759122272987,17.75299956,4123.3,4123.2,0.002]
[1759122276590,17.75199956,4123.3,4123.2,0.002]
[1759122278086,14.71899956,4123.3,4123.2,0.002]
[1759122278250,17.75199956,4123.3,4123.2,0.002]
[1759122278885,14.71899956,4123.3,4123.2,0.002]
[1759122279080,17.75199956,4123.3,4123.2,0.002]
[1759122284763,17.75199956,4123.3,4123.2,0.7001]
[1759122284764,17.75099956,4123.3,4123.2,0.7001]
[1759122285871,17.75099956,4123.3,4123.2,0.002]
[1759122287990,14.71899956,4123.3,4123.2,0.7001]
[1759122288200,17.74999956,4123.3,4123.2,0.7001]
[1759122289275,17.74999956,4123.3,4123.2,0.4724]
[1759122289886,17.74999956,4123.3,4123.2,0.002]
[1759122293894,17.74999956,4123.3,4123.2,0.4724]
[1759122294308,17.74999956,4123.3,4123.2,0.002]
[1759122294470,17.74899956,4123.3,4123.2,0.002]
[1759122295664,14.71899956,4123.3,4123.2,0.7001]
[1759122295873,17.74899956,4123.3,4123.2,0.7001]
[1759122297587,17.74899956,4123.3,4123.2,0.002]
[1759122300579,17.74799956,4123.3,4123.2,0.002]
[1759122303599,6.21730073,4123.2,4123.1,1e-08]
[1759122303796,1.458,4122.3,4122.2,0.4704]
[1759122304001,16.2642637,4122.3,4122.2,0.4704]
[1759122304510,16.2642637,4122.3,4122.2,0.6981]
[1759122304925,2.42632311,4121.5,4120.9,14.5]
[1759122305122,3.1498,4121.4,4120.9,14.5]
[1759122305527,3.1498,4121.4,4121.0,0.6981]
[1759122305722,3.1498,4121.4,4121.1,0.6981]
[1759122305925,3.1498,4121.4,4121.2,0.6981]
[1759122306127,3.1498,4121.4,4121.3,0.6981]
[1759122309214,5.57615997,4121.4,4121.3,0.6981]
[1759122310041,5.57615997,4121.4,4120.6,14.5]
[1759122310042,2.42647772,4121.2,4120.6,14.5]
[1759122310239,5.45555209,4121.1,4120.6,14.5]
[1759122310539,3.028,4121.0,4120.7,0.69396772]
[1759122310735,3.028,4121.0,4120.8,0.6697]
[1759122310936,3.028,4121.0,4120.7,0.02426772]
[1759122311141,3.028,4121.0,4120.9,0.6697]
[1759122312123,0.73002204,4121.1,4120.9,0.6697]
[1759122312329,3.031,4121.0,4120.6,14.5]
[1759122312543,3.031,4121.0,4120.7,2.42677119]
[1759122313015,3.031,4121.0,4120.8,0.6856]
[1759122313543,3.031,4121.0,4120.7,2.42677119]
[1759122313544,3.031,4121.0,4120.9,0.6856]
[1759122314140,4.489,4121.0,4120.9,0.6856]
[1759122314343,3.031,4121.0,4120.9,0.6856]
[1759122316019,3.031,4121.0,4120.9,15.1856]
[1759122323855,3.031,4121.0,4120.9,17.61225437]
[1759122324224,3.032,4121.0,4120.9,17.61225437]
[1759122324624,3.032,4121.0,4120.9,15.1856]
[1759122325261,0.72998473,4121.2,4120.9,0.6856]
[1759122325463,0.72998473,4121.2,4120.8,0.002]
[1759122325464,3.032,4121.1,4121.0,0.6856]
[1759122326667,3.032,4121.1,4121.0,0.2312]
[1759122326870,3.032,4121.1,4121.0,0.6856]
[1759122327168,5.4585366,4121.1,4121.0,0.6856]
[1759122327927,3.032,4121.1,4121.0,0.6856]
[1759122328139,5.4585366,4121.1,4121.0,0.6856]
[1759122331055,3.032,4121.1,4121.0,0.6856]
[1759122331238,5.4585366,4121.1,4121.0,0.6856]
[1759122332630,2.4265366,4121.1,4121.0,0.6856]
[1759122332829,5.4575366,4121.1,4121.0,0.6856]
[1759122334341,5.4575366,4121.1,4120.8,0.002]
[1759122334549,2.54740649,4121.0,4120.8,0.6876]
[1759122334751,3.03,4120.9,4120.8,0.002]
[1759122334951,3.03,4120.9,4120.8,0.6876]
[1759122335473,5.45665437,4120.9,4120.8,0.6876]
[1759122335774,3.03,4120.9,4120.8,0.6876]
[1759122337134,5.45665437,4120.9,4120.8,0.6876]
[1759122337571,5.45665437,4120.9,4120.8,0.002]
[1759122337944,3.03,4120.9,4120.8,0.002]
[1759122338145,3.03,4120.9,4120.8,0.6876]
[1759122339446,5.45665437,4120.9,4120.8,0.6876]
[1759122339946,3.03,4120.9,4120.8,0.6876]
[1759122340271,3.03,4120.9,4120.8,0.002]
[1759122340472,5.45665437,4120.9,4120.8,0.002]
[1759122340853,3.03,4120.9,4120.8,0.002]
[1759122342749,3.03,4120.9,4120.8,0.6923]
[1759122343490,0.1208,4121.0,4120.8,0.6923]
[1759122343657,3.029,4120.9,4120.8,0.002]
[1759122344382,3.029,4120.9,4120.8,0.6923]
[1759122345149,8.45565437,4120.9,4120.8,0.002]
[1759122348051,10.09425456,4120.9,4120.8,0.002]
[1759122348259,11.67175456,4120.9,4120.8,0.002]
[1759122348473,11.74175456,4120.9,4120.8,0.002]
[1759122349612,11.67175456,4120.9,4120.8,0.002]
[1759122351399,11.55225456,4120.9,4120.8,0.002]
[1759122351603,11.74175456,4120.9,4120.8,0.002]
[1759122351992,11.67175456,4120.9,4120.8,0.002]
[1759122353070,11.55225456,4120.9,4120.8,0.002]
[1759122353823,3.0,4120.9,4120.8,0.2373]
[1759122354012,5.42665437,4120.9,4120.8,0.6923]
[1759122354410,6.029,4120.9,4120.8,0.6923]
[1759122354723,6.03,4120.9,4120.8,0.6923]
[1759122362331,3.029,4120.9,4120.8,0.6923]
[1759122362537,3.029,4120.9,4120.8,1.00421868]
[1759122362735,3.029,4120.9,4120.8,14.502]
[1759122363103,3.029,4120.9,4120.8,0.002]
[1759122363309,5.45565437,4120.9,4120.8,0.002]
[1759122364812,3.029,4120.9,4120.8,0.002]
[1759122365213,5.45565437,4120.9,4120.8,0.002]
[1759122367669,9.95527738,4120.9,4120.8,0.002]
[1759122367962,10.07477738,4120.9,4120.8,0.002]
[1759122368545,9.95527738,4120.9,4120.8,0.002]
[1759122369640,11.53277738,4120.9,4120.8,0.002]
[1759122369845,11.60277738,4120.9,4120.8,0.002]
[1759122371217,11.53277738,4120.9,4120.8,0.002]
[1759122371658,12.39477738,4120.9,4120.8,0.002]
[1759122372183,12.32477738,4120.9,4120.8,0.002]
[1759122372764,12.20527738,4120.9,4120.8,0.002]
[1759122373961,12.58597226,4120.9,4120.8,0.002]
[1759122374892,9.55697226,4120.9,4120.8,0.002]
[1759122375194,12.58997226,4120.9,4120.8,0.002]
[1759122378998,8.76497226,4120.9,4120.8,0.002]
[1759122379299,10.29734925,4120.9,4120.8,0.6963]
[1759122381197,7.26534925,4120.9,4120.8,0.6963]
[1759122381375,10.29734925,4120.9,4120.8,0.6963]
[1759122381776,10.29734925,4120.9,4120.8,0.002]
[1759122381966,10.29734925,4120.9,4120.8,0.6963]
[1759122382374,12.1233953,4120.9,4120.8,0.002]
[1759122384602,16.92988979,4120.9,4120.8,0.6963]
[1759122384804,13.89788979,4120.9,4120.8,0.6963]
[1759122384999,16.92988979,4120.9,4120.8,0.6963]
[1759122386115,16.92988979,4120.9,4120.8,0.002]
[1759122390618,17.84138979,4120.9,4120.8,0.002]
[1759122391013,17.72188979,4120.9,4120.8,0.002]
[1759122393118,14.68988979,4120.9,4120.8,0.002]
[1759122393318,17.72088979,4120.9,4120.8,0.002]
[1759122393536,17.72088979,4120.9,4120.8,0.2371]
[1759122394408,18.47831274,4120.9,4120.8,0.6963]
[1759122396617,12.9143953,4120.9,4120.8,0.6963]
[1759122396821,18.09761786,4120.9,4120.8,0.6963]
[1759122397001,18.09761786,4120.9,4120.8,0.002]
[1759122398545,18.09761786,4120.9,4120.8,0.6963]
[1759122399940,18.09761786,4120.9,4120.8,0.4612]
[1759122400141,18.09761786,4120.9,4120.8,0.002]
[1759122402516,18.09561786,4120.9,4120.8,0.002]
[1759122402814,18.21511786,4120.9,4120.8,0.002]
[1759122403237,18.09561786,4120.9,4120.8,0.002]
[1759122403561,6.88488994,4120.5,4120.4,0.002]
[1759122403743,16.72105768,4120.5,4120.4,0.002]
[1759122404337,17.41455768,4120.5,4120.4,0.002]
[1759122404855,18.32605768,4120.5,4120.4,0.002]
[1759122406767,18.706795,4120.5,4120.4,0.002]
[1759122407465,18.587295,4120.5,4120.4,0.002]
[1759122408041,14.766295,4120.5,4120.4,0.002]
[1759122408243,17.795295,4120.5,4120.4,0.6935]
[1759122408443,17.41455768,4120.5,4120.4,0.6935]
[1759122408661,14.38555768,4120.5,4120.4,0.6935]
[1759122408879,16.17130738,4120.5,4120.4,0.6935]
[1759122409182,16.17130738,4120.5,4120.4,0.002]
[1759122409632,16.96330738,4120.5,4120.4,0.002]
[1759122409831,13.93430738,4120.5,4120.4,0.002]
[1759122410034,16.96330738,4120.5,4120.4,0.002]
[1759122410234,18.91426686,4120.5,4120.4,0.002]
[1759122411470,19.03376686,4120.5,4120.4,0.002]
[1759122411964,19.41450369,4120.5,4120.4,0.002]
[1759122413046,19.29500369,4120.5,4120.4,0.002]
[1759122413252,16.26600369,4120.5,4120.4,0.002]
[1759122413451,18.50300369,4120.5,4120.4,0.6935]
[1759122413886,18.50300369,4120.5,4120.4,0.2321]
[1759122414082,18.50300369,4120.5,4120.4,0.002]
[1759122414451,19.29500369,4120.5,4120.4,0.002]
[1759122418190,19.41450369,4120.5,4120.4,0.002]
[1759122418396,19.29500369,4120.5,4120.4,0.002]
[1759122420196,19.41450369,4120.5,4120.4,0.002]
[1759122420902,19.29500369,4120.5,4120.4,0.002]
[1759122421100,13.2411019,4120.0,4119.9,0.002]
[1759122421272,16.2721019,4120.0,4119.9,0.002]
[1759122421471,16.3916019,4120.0,4119.9,0.002]
[1759122421871,16.98554607,4120.0,4119.9,0.002]
[1759122422120,7.67742013,4119.6,4119.0,0.6915]
[1759122422281,7.67742013,4119.6,4118.8,1.99146364]
[1759122422282,17.58281385,4119.6,4118.8,1.99146364]
[1759122422484,17.70231385,4119.6,4118.8,1.99146364]
[1759122422882,18.43274469,4119.6,4118.8,2.45286364]
[1759122423279,18.31324469,4119.6,4118.8,1.76136364]
[1759122423593,9.44975011,4118.9,4118.8,1.76136364]